fUSD/lending_fUSD_20240408
["ID","MTS","AMOUNT","RATE_DAILY","PERIOD"]
[321863582,1712572251789,-300.0,0.00027,2]
[321863583,1712572251798,-320.64423221,0.00027,2]
[321863584,1712572251807,-500.0,0.00027,2]
[321863585,1712572251817,-31991.22307981,0.00027,2]
[321863586,1712572251827,-2506.31,0.00027,2]
[321863587,1712572251838,-188.3420924,0.00027,4]
[321863588,1712572251850,-1950.0,0.00027,3]
[321863589,1712572251860,-187.0,0.00027,10]
[321863590,1712572251868,-481.0,0.00027,10]
[321863591,1712572251878,-600.0,0.00027,2]
[321863592,1712572251888,-530.356658,0.00027015,2]
[321863593,1712572251897,-2237.082352,0.00027015,2]
[321863594,1712572251906,-2237.082352,0.00027015,2]
[321863595,1712572251915,-2764.627218,0.00027015,2]
[321863596,1712572251925,-2952.91,0.00027068,15]
[321863597,1712572251935,-1500.0,0.00027094,2]
[321863598,1712572251944,-154.21324393,0.000271,2]
[321863599,1712572251954,-1500.0,0.00027103,2]
[321863600,1712572251963,-213.0,0.0002712,2]
[321863601,1712572251973,-3425.19,0.00027123,2]
[321863602,1712572251982,-150.0,0.00027155,2]
[321863603,1712572251991,-1500.0,0.00027155,2]
[321863604,1712572252000,-1054.77270546,0.00027174,2]
[321863605,1712572252010,-1500.0,0.00027182,2]
[321863606,1712572252019,-1546.16980555,0.000272,10]
[321863607,1712572252029,-152.0,0.00027288,12]
[321863608,1712572252038,-1500.0,0.000273,2]
[321863609,1712572252048,-1877.94880233,0.00027339,2]
[321863610,1712572252057,-1500.0,0.00027347,2]
[321863611,1712572252066,-159.507851,0.00027348,2]
[321863612,1712572252075,-530.356658,0.00027348,2]
[321863613,1712572252084,-2237.082352,0.00027348,2]
[321863614,1712572252094,-2237.082352,0.00027348,2]
[321863615,1712572252103,-2764.627218,0.00027348,2]
[321863616,1712572252113,-281.0,0.00027358,2]
[321863617,1712572252122,-1610.0,0.00027358,2]
[321863618,1712572252133,-244.108,0.00027358,2]
[321863619,1712572252142,-217.17285151,0.00027397,2]
[321863620,1712572252151,-500.0,0.00027397,2]
[321863621,1712572252160,-1000.0,0.00027397,7]
[321863622,1712572252169,-400.0,0.00027397,2]
[321863623,1712572252189,-250.0,0.00027397,2]
[321863624,1712572252206,-79719.39,0.00027397,2]
[321863625,1712572252224,-15757.2,0.00027397,2]
[321863626,1712572252242,-1812.04018832,0.000274,2]
[321863627,1712572252257,-1812.04018832,0.000274,2]
[321863628,1712572252274,-1812.04018832,0.000274,2]
[321863629,1712572252291,-1812.04018832,0.000274,2]
[321863630,1712572252306,-1812.04018832,0.000274,2]
[321863631,1712572252324,-1812.04018832,0.000274,2]
[321863632,1712572252339,-1812.04018832,0.000274,2]
[321863633,1712572252356,-1812.04018832,0.000274,2]
[321863634,1712572252376,-1812.04018832,0.000274,2]
[321863635,1712572252392,-1812.04018832,0.000274,2]
[321863636,1712572252406,-1812.04018832,0.000274,2]
[321863637,1712572252422,-1812.04018832,0.000274,2]
[321863638,1712572252436,-1812.04018832,0.000274,2]
[321863639,1712572252450,-1812.04018832,0.000274,2]
[321863640,1712572252465,-1812.04018832,0.000274,2]
[321863641,1712572252480,-1812.04018832,0.000274,2]
[321863642,1712572252495,-1812.04018832,0.000274,2]
[321863643,1712572252512,-1812.04018832,0.000274,2]
[321863644,1712572252526,-1812.04018832,0.000274,2]
[321863645,1712572252540,-1812.54,0.000274,2]
[321863646,1712572252562,-377.92664714,0.000274,2]
[321863647,1712572252576,-1376.42688431,0.000274,2]
[321863648,1712572252590,-1376.42688431,0.000274,2]
[321863649,1712572252605,-1376.42688431,0.000274,2]
[321863650,1712572252620,-1376.42688431,0.000274,2]
[321863651,1712572252635,-1376.42688431,0.000274,2]
[321863652,1712572252649,-1376.42688431,0.000274,2]
[321863653,1712572252666,-1376.42688431,0.000274,2]
[321863654,1712572252681,-1376.42688431,0.000274,2]
[321863655,1712572252696,-1376.42688431,0.000274,2]
[321863656,1712572252712,-1376.42688431,0.000274,2]
[321863657,1712572252726,-1376.42688431,0.000274,2]
[321863658,1712572252741,-1376.42688431,0.000274,2]
[321863659,1712572252756,-1376.42688431,0.000274,2]
[321863660,1712572252771,-1376.42688431,0.000274,2]
[321863661,1712572252786,-1376.42688431,0.000274,2]
[321863662,1712572252801,-1376.42688431,0.000274,2]
[321863663,1712572252816,-1376.42688431,0.000274,2]
[321863664,1712572252831,-1376.42688431,0.000274,2]
[321863665,1712572252853,-1376.42688431,0.000274,2]
[321863666,1712572252870,-1376.92,0.000274,2]
[321863667,1712572252885,-264.6637165,0.000274,2]
[321863668,1712572252900,-264.6637165,0.000274,2]
[321863669,1712572252916,-264.6637165,0.000274,2]
[321863670,1712572252933,-264.6637165,0.000274,2]
[321863671,1712572252950,-264.6637165,0.000274,2]
[321863672,1712572252966,-264.6637165,0.000274,2]
[321863673,1712572252985,-264.6637165,0.000274,2]
[321863674,1712572253000,-264.6637165,0.000274,2]
[321863675,1712572253016,-264.6637165,0.000274,2]
[321863676,1712572253031,-264.6637165,0.000274,2]
[321863677,1712572253047,-264.6637165,0.000274,2]
[321863678,1712572253062,-264.6637165,0.000274,2]
[321863679,1712572253077,-264.6637165,0.000274,2]
[321863680,1712572253092,-264.6637165,0.000274,2]
[321863681,1712572253107,-264.6637165,0.000274,2]
[321863682,1712572253121,-264.6637165,0.000274,2]
[321863683,1712572253137,-264.6637165,0.000274,2]
[321863684,1712572253151,-264.6637165,0.000274,2]
[321863685,1712572253165,-264.6637165,0.000274,2]
[321863686,1712572253181,-265.16,0.000274,2]
[321863687,1712572253196,-1168.68364221,0.000274,2]
[321863688,1712572253211,-1168.68364221,0.000274,2]
[321863689,1712572253229,-1168.68364221,0.000274,2]
[321863690,1712572253244,-1168.68364221,0.000274,2]
[321863691,1712572253259,-1168.68364221,0.000274,2]
[321863692,1712572253275,-1168.68364221,0.000274,2]
[321863693,1712572253290,-1168.68364221,0.000274,2]
[321863694,1712572253306,-1168.68364221,0.000274,2]
[321863695,1712572253321,-1168.68364221,0.000274,2]
[321863696,1712572253337,-1168.68364221,0.000274,2]
[321863697,1712572253354,-1168.68364221,0.000274,2]
[321863698,1712572253368,-1168.68364221,0.000274,2]
[321863699,1712572253384,-1168.68364221,0.000274,2]
[321863700,1712572253399,-1168.68364221,0.000274,2]
[321863701,1712572253413,-1168.68364221,0.000274,2]
[321863702,1712572253429,-1168.68364221,0.000274,2]
[321863703,1712572253443,-1168.68364221,0.000274,2]
[321863704,1712572253459,-1168.68364221,0.000274,2]
[321863705,1712572253473,-1168.68364221,0.000274,2]
[321863706,1712572253488,-1169.18,0.000274,2]
[321863707,1712572253502,-3425.0,0.00027463,7]
[321863708,1712572253516,-150.0,0.00027473,2]
[321863709,1712572253531,-330.44041692,0.00027482,3]
[321863710,1712572253546,-1500.0,0.00027496,2]
[321863711,1712572253560,-188.08785741,0.000275,2]
[321863712,1712572253575,-150.0,0.00027507,2]
[321863713,1712572253589,-1000.0,0.00027522,7]
[321863714,1712572253604,-1500.0,0.00027558,2]
[321863715,1712572253620,-1778.12285496,0.00027602,2]
[321863716,1712572253634,-152.0,0.00027646,13]
[321863717,1712572253649,-1000.0,0.00027646,7]
[321863718,1712572253663,-1500.0,0.00027648,2]
[321863719,1712572253679,-1101.76148117,0.00027675,2]
[321863720,1712572253694,-1097.06351258,0.00027675,2]
[321863721,1712572253708,-530.356658,0.00027682,2]
[321863722,1712572253723,-2237.082352,0.00027682,2]
[321863723,1712572253737,-2237.082352,0.00027682,2]
[321863724,1712572253751,-2764.627218,0.00027682,2]
[321863725,1712572253766,-213.0,0.0002769,2]
[321863726,1712572253780,-1500.0,0.00027711,2]
[321863727,1712572253794,-505.0,0.00027712,2]
[321863728,1712572253808,-150.0,0.00027726,2]
[321863729,1712572253821,-1600.0,0.00027755,2]
[321863730,1712572254052,-1000.0,0.00027771,7]
[321863731,1712572254089,-1414.43,0.000278,2]
[321863732,1712572254103,-1525.82,0.000278,2]
[321863733,1712572254113,-1000.0,0.00027822,2]
[321863734,1712572254122,-1500.0,0.00027868,2]
[321863735,1712572254132,-30773.8451212,0.00027872,7]
[321863736,1712572254141,-363.35731545,0.00027874,2]
[321863737,1712572254151,-1000.0,0.00027895,7]
[321863738,1712572254160,-3959.16914891,0.000279,14]
[321863739,1712572254176,-254.44238333,0.00027962,2]
[321863740,1712572254186,-155.0,0.00027962,2]
[321863741,1712572254195,-151.0,0.0002797,30]
[321863742,1712572254204,-5505.78253723,0.00027979,2]
[321863743,1712572254214,-1058.72986598,0.00027979,2]
[321863744,1712572254223,-4674.80956886,0.00027979,2]
[321863745,1712572254233,-7248.23575328,0.0002799,2]
[321863746,1712572254242,-22615.92397916,0.00028,2]
[321863747,1712572254251,-365.032791,0.00028,2]
[321863748,1712572254260,-1000.0,0.00028,2]
[321863749,1712572254269,-150.0,0.00028,2]
[321863750,1712572254278,-10647.21850863,0.00028,7]
[321863751,1712572254287,-288.799999,0.00028,2]
[321863752,1712572254296,-500.0,0.00028,2]
[321863753,1712572254305,-500.0,0.00028,14]
[321863754,1712572254314,-537.92672848,0.00028,2]
[321863755,1712572254323,-1932.449045,0.00028,8]
[321863756,1712572254333,-4044.97201745,0.00028,15]
[321863757,1712572254342,-12021.66091986,0.00028,2]
[321863758,1712572254351,-20055.36932423,0.00028,15]
[321863759,1712572254360,-152.0,0.00028004,14]
[321863760,1712572254369,-475.76,0.00028012,2]
[321863761,1712572254379,-159.507851,0.00028015,2]
[321863762,1712572254388,-159.009926,0.00028015,2]
[321863763,1712572254397,-159.009925,0.00028015,2]
[321863764,1712572254406,-530.356658,0.00028015,2]
[321863765,1712572254415,-2237.082352,0.00028015,2]
[321863766,1712572254425,-2237.082352,0.00028015,2]
[321863767,1712572254435,-2764.627218,0.00028015,2]
[321863768,1712572254444,-1000.0,0.0002802,7]
[321863769,1712572254454,-3200.0,0.00028029,2]
[321863770,1712572254464,-500.0,0.00028029,2]
[321863771,1712572254474,-700.0,0.00028029,2]
[321863772,1712572254484,-1877.94880233,0.00028065,2]
[321863773,1712572254494,-1405.00928707,0.000281,2]
[321863774,1712572254504,-1000.0,0.00028144,7]
[321863775,1712572254514,-1500.0,0.00028168,2]
[321863776,1712572254524,-161.43,0.00028169,2]
[321863777,1712572254534,-154.349164,0.00028198,2]
[321863778,1712572254543,-1289.844522,0.00028198,2]
[321863779,1712572254553,-160.812526,0.00028198,2]
[321863780,1712572254563,-400.064717,0.00028198,2]
[321863781,1712572254572,-400.065421,0.00028198,2]
[321863782,1712572254582,-201.237514,0.00028198,2]
[321863783,1712572254591,-560.304835,0.00028198,2]
[321863784,1712572254602,-11193.409113,0.00028198,2]
[321863785,1712572254611,-191.970197,0.00028198,2]
[321863786,1712572254620,-1470.33982002,0.00028215,2]
[321863787,1712572254629,-1000.0,0.00028269,7]
[321863788,1712572254639,-213.0,0.0002827,2]
[321863789,1712572254648,-1500.0,0.0002832,2]
[321863790,1712572254657,-5505.78253723,0.00028324,2]
[321863791,1712572254667,-1058.72986598,0.00028324,2]
[321863792,1712572254676,-4674.80956886,0.00028324,2]
[321863793,1712572254686,-7248.23575328,0.00028336,2]
[321863794,1712572254695,-154.21324393,0.0002836,2]
[321863795,1712572254705,-152.0,0.00028363,15]
[321863796,1712572254715,-1000.0,0.00028394,7]
[321863797,1712572254725,-46051.84742478,0.0002844,2]
[321863798,1712572254735,-1500.0,0.00028459,2]
[321863799,1712572254744,-233.96732315,0.000285,2]
[321863800,1712572254754,-1000.0,0.000285,8]
[321863801,1712572254764,-1000.0,0.00028518,7]
[321863802,1712572254773,-151.0,0.00028541,7]
[321863803,1712572254783,-1289.844522,0.0002855,2]
[321863804,1712572254792,-400.064717,0.0002855,2]
[321863805,1712572254802,-400.065421,0.0002855,2]
[321863806,1712572254811,-560.304835,0.0002855,2]
[321863807,1712572254820,-11193.409113,0.0002855,2]
[321863808,1712572254830,-282.64852491,0.00028565,2]
[321863809,1712572254842,-1000.0,0.00028643,7]
[321863810,1712572254855,-5457.43855,0.0002867,2]
[321863811,1712572255526,-48.34398723,0.0002867,2]
[321863812,1712572255536,-1058.72986598,0.0002867,2]
[321863813,1712572255547,-1981.1107739,0.0002867,2]
[321863814,1712572257968,-422.24066894,0.00021358,2]
[321863815,1712572258106,-836.75933106,0.00021358,2]
[321863816,1712572258117,-2693.69879496,0.0002867,2]
[321863817,1712572258128,-6898.44376772,0.00028681,2]
[321863818,1712572258242,-335.35420058,0.00028681,2]
[321863819,1712572258255,-14.43778498,0.00028681,2]
[321863820,1712572258266,-151.019313,0.000287,14]
[321863821,1712572258275,-1296.87887427,0.00028707,2]
[321863822,1712572258285,-152.0,0.00028721,16]
[321863823,1712572258294,-505.0,0.00028739,2]
[321863824,1712572258305,-150.0,0.00028743,2]
[321863825,1712572258315,-1000.0,0.00028767,7]
[321863826,1712572258325,-207.33406528,0.0002878,2]
[321863827,1712572258334,-265.42307109,0.0002878,2]
[321863828,1712572258345,-477.0,0.0002879,2]
[321863829,1712572258355,-1877.94880233,0.00028792,2]
[321863830,1712572258364,-330.44041692,0.00028792,4]
[321863831,1712572258374,-1116.40583425,0.000288,3]
[321863832,1712572258446,-484.78416575,0.000288,3]
[321863833,1712572258455,-200.0,0.000288,10]
[321863834,1712572258465,-1700.0,0.000288,10]
[321863835,1712572258474,-1500.0,0.00028842,2]
[321863836,1712572258485,-1500.0,0.00028846,2]
[321863837,1712572258494,-211.0,0.0002885,2]
[321863838,1712572258503,-213.0,0.0002885,2]
[321863839,1712572258513,-846.73234123,0.00028851,2]
[321863840,1712572258525,-753.26765877,0.00028851,2]
[321863841,1712572258535,-224.66956517,0.0002886,2]
[321863842,1712572258567,-360.08,0.0002886,2]
[321863843,1712572258579,-716.927328,0.0002886,2]
[321863844,1712572258648,-330.31,0.0002886,2]
[321863845,1712572258661,-7834.47934423,0.0002886,2]
[321863846,1712572258672,-8508.1294464,0.0002886,2]
[321863847,1712572258681,-7549.7926554,0.0002886,2]
[321863848,1712572258692,-3992.5262111,0.0002886,2]
[321863849,1712572258701,-3588.3432075,0.0002886,2]
[321863850,1712572258712,-3184.1602039,0.0002886,2]
[321863851,1712572258722,-5123.35513,0.0002886,2]
[321863852,1712572258734,-4620.1060586,0.0002886,2]
[321863853,1712572258743,-4116.8569871,0.0002886,2]
[321863854,1712572258752,-7295.7219546,0.0002888,2]
[321863855,1712572258826,-273.63085231,0.00024666,2]
[321863856,1712572258838,-447.82198369,0.00024666,2]
[321863857,1712572258854,-626.86484445,0.00024666,2]
[321863858,1712572258866,-645.19282453,0.00024666,2]
[321863866,1712572323131,569.91127147,0.00018999,7]
[321863867,1712572331666,300.0,0.00017996,2]
[321863868,1712572342115,306.1115384,0.00018997,7]
[321863869,1712572711060,150.0,0.000297,120]
[321863870,1712572765381,-500.0,0.0001825,2]
[321863871,1712572765405,-336.0,0.00018263,2]
[321863872,1712572765426,-155.0,0.00018264,2]
[321863873,1712572765447,-1290.89052335,0.00018264,2]
[321863874,1712572765469,-500.0,0.00018265,2]
[321863875,1712572765491,-451.70299826,0.00018265,2]
[321863876,1712572765513,-364.48,0.00018269,2]
[321863877,1712572765534,-1000.0,0.000188,2]
[321863878,1712572765556,-687.54686144,0.000189,2]
[321863879,1712572765577,-1446.0,0.00018993,2]
[321863880,1712572765598,-907.77110081,0.00018997,2]
[321863881,1712572765619,-150.0,0.00018998,2]
[321863882,1712572765642,-155918.01952964,0.00018999,2]
[321863883,1712572765664,-1750.0,0.00019,3]
[321863884,1712572765685,-3553.8245,0.000196,2]
[321863885,1712572765707,-245000.0,0.000196,2]
[321863886,1712572765728,-4816.7674,0.000196,2]
[321863887,1712572765748,-500.0,0.000196,2]
[321863888,1712572766005,-727.2416,0.000196,2]
[321863889,1712572766027,-3626.698,0.00019693,2]
[321863890,1712572766049,-499.99,0.00019693,2]
[321863891,1712572766071,-250.0,0.00019972,2]
[321863892,1712572766093,-687.54686136,0.00019998,2]
[321863893,1712572766114,-624.22352962,0.0002,2]
[321863894,1712572766134,-19454.75608231,0.0002,2]
[321863895,1712572766156,-165.29,0.00020472,2]
[321863896,1712572766178,-364.48,0.00020533,2]
[321863897,1712572766199,-506.0,0.00020548,2]
[321863898,1712572766222,-500.0,0.00020832,2]
[321863899,1712572766242,-550.49040338,0.00020899,2]
[321863900,1712572766265,-1800.0,0.00021,3]
[321863901,1712572766286,-454.40065796,0.00021,2]
[321863902,1712572766307,-1371.8778253,0.00021,2]
[321863903,1712572766486,521.25108175,0.00018997,2]
[321863904,1712572770956,3014.5735,0.0001889,2]
[321863905,1712572845720,1000.0,0.00021,2]
[321863906,1712572977325,-157.04937055,0.00033,120]
[321863907,1712572977357,-342.95062945,0.00033,120]
[321863908,1712573007244,323.5726,0.0002095,2]
[321863909,1712573024119,1000.0,0.00021,2]
[321863910,1712573073701,200.0,0.00020996,2]
[321863911,1712573087230,245000.0,0.0002095,2]
[321863912,1712573157362,4400.0,0.00021,2]
[321863913,1712573167773,250.0,0.0002067,2]
[321863914,1712573225515,1000.0,0.00020931,2]
[321863918,1712573230280,200.0,0.000207,7]
[321863919,1712573233122,500.0,0.000208,7]
[321863920,1712573234709,700.0,0.000209,7]
[321863968,1712573265287,4400.0,0.00021,2]
[321863969,1712573265745,675.8235,0.00020938,2]
[321863970,1712573281813,245000.0,0.0002095,2]
[321863971,1712573298326,328.03,0.00019121,2]
[321863972,1712573318922,319.78675626,0.00020974,2]
[321863973,1712573342633,1290.89052335,0.00021,2]
[321863998,1712573352140,714.74834698,0.00021,2]
[321863999,1712573354268,1338.80263955,0.00019996,2]
[321864237,1712573367754,714.74834698,0.00021,2]
[321864240,1712573373586,454.40065796,0.00021,2]
[321864241,1712573381717,3779.0,0.00021,2]
[321864242,1712573382353,3401.0,0.00021,2]
[321864243,1712573384275,16696.60473603,0.00020974,2]
[321864244,1712573387588,714.74834698,0.00021,2]
[321864247,1712573406343,714.74834698,0.00021,2]
[321864248,1712573406527,40000.0,0.0002,2]
[321864249,1712573429691,714.74834698,0.00021,2]
[321864259,1712573432785,-448.11514943,0.00021006,2]
[321864260,1712573432794,-155.0,0.00021006,2]
[321864261,1712573432803,-462.84427643,0.00021007,2]
[321864262,1712573432905,-4212.9969153,0.00021007,2]
[321864263,1712573432917,-3168.65073702,0.00021007,2]
[321864264,1712573432928,-651.64469795,0.00021007,2]
[321864265,1712573432939,-416.19668203,0.00021007,2]
[321864266,1712573432954,-1056.59991547,0.00021007,2]
[321864267,1712573432967,-873.29811072,0.00021007,2]
[321864272,1712573433411,-731.15191356,0.00021007,2]
[321864273,1712573433438,-2424.03054088,0.00021007,2]
[321864281,1712573438548,-775.44461026,0.00021007,2]
[321864282,1712573438600,-4681.89768269,0.00021007,2]
[321864283,1712573438609,-2356.65513033,0.00021008,2]
[321864284,1712573438618,-716.45550691,0.00021013,2]
[321864285,1712573438627,-903.56258817,0.00021013,2]
[321864286,1712573438638,-11840.75406275,0.00021013,2]
[321864287,1712573438647,-150.0,0.00021014,2]
[321864288,1712573438656,-213.53,0.00021039,2]
[321864289,1712573438665,-874.28522985,0.00021043,2]
[321864291,1712573438794,-125.71477015,0.00021043,2]
[321864293,1712573438803,-454.40065796,0.00021049,2]
[321864294,1712573438813,-9419.88457189,0.0002105,2]
[321864340,1712573439617,1579.04,0.00020835,2]
[321864360,1712573440419,-7260.26667999,0.0002105,2]
[321864362,1712573440430,-5781.04731812,0.0002105,2]
[321864367,1712573440482,-4340.54681658,0.0002105,2]
[321864368,1712573440493,-6367.25138613,0.0002105,2]
[321864369,1712573440505,-8152.2433898,0.0002105,2]
[321864370,1712573440515,-2892.29723199,0.0002105,2]
[321864371,1712573440526,-543.86945868,0.0002105,2]
[321864404,1712573443516,-361.0638663,0.0002105,2]
[321864405,1712573443549,-3681.05858929,0.0002105,2]
[321864406,1712573443561,-2888.83,0.0002105,2]
[321864407,1712573443779,-1452.5,0.0002105,2]
[321864408,1712573443806,-6172.62096356,0.0002105,2]
[321864409,1712573443838,-101882.58922374,0.0002105,2]
[321864410,1712573443849,-4885.96678983,0.0002105,2]
[321864572,1712573447673,-1634.4328,0.00021049,2]
[321864573,1712573447683,-11279.20391569,0.0002105,2]
[321864592,1712573448398,-160721.12538388,0.0002105,2]
[321864593,1712573449673,1468.0602,0.0002095,2]
[321864594,1712573450231,714.74834698,0.00021,2]
[321864599,1712573465721,714.74834698,0.00021,2]
[321864600,1712573470839,179733.85974217,0.00021,2]
[321864601,1712573476381,1386.08397585,0.000121,30]
[321864602,1712573484530,244729.6152,0.0002095,2]
[321864603,1712573486524,575.8472,0.0002095,2]
[321864604,1712573487476,714.74834698,0.00021,2]
[321864605,1712573502826,374.126165,0.0002094,2]
[321864606,1712573504534,871279.87254897,0.000209,2]
[321864607,1712573509609,714.74834698,0.00021,2]
[321864608,1712573515465,362.32102287,0.00016838,2]
[321864615,1712573525802,427.09288517,0.00021,2]
[321864616,1712573536022,20119.8272897,0.00021,2]
[321864617,1712573555273,8119.88934363,0.00021,2]
[321864618,1712573578722,312.12044838,0.00020974,2]
[321864619,1712573579879,196654.58591708,0.0002098,2]
[321864620,1712573596683,200.0,0.00020882,2]
[321864621,1712573605312,1000.0,0.0002095,2]
[321864622,1712573638733,2225.66,0.00012,2]
[321864623,1712573640852,36588.0366229,0.00021,2]
[321864624,1712573641739,647.77,0.0002094,2]
[321864625,1712573654396,626.98245444,0.00020974,2]
[321864626,1712573658412,11710.64947515,0.0002,2]
[321864627,1712573665697,807.43898032,0.00019,2]
[321864628,1712573674693,1000.0,0.00021,2]
[321864629,1712573676055,23900.0,0.00020842,2]
[321864630,1712573684059,3285.0,0.00021,2]
[321864631,1712573693877,312.12044838,0.00020974,2]
[321864632,1712573742070,1576.3581,0.0002095,2]
[321864633,1712573745917,155.0,0.00020949,2]
[321864634,1712573746401,4572.46475471,0.00020949,2]
[321864635,1712573770762,1422.0306,0.0002095,2]
[321864636,1712573790114,217.41,0.0002098,2]
[321864637,1712573795178,329.07,0.00019062,2]
[321864677,1712573952393,15513.69572695,0.00020974,2]
[321864678,1712573955801,320.21732711,0.00020974,2]
[321864679,1712573960912,234.71,0.0002097,2]
[321864680,1712573964888,1750.0,0.00019,3]
[321864681,1712573966707,1800.0,0.00021,3]
[321864682,1712573984796,800.0,0.0002099,2]
[321864683,1712573994708,564.28420905,0.00020996,2]
[321864684,1712574043193,2666.39027205,0.00024424,20]
[321864685,1712574087014,1798.07,0.00020901,2]
[321864686,1712574215377,23900.0,0.00020826,2]
[321864690,1712574338189,507.8557881,0.00020996,2]
[321864718,1712574399757,2000.0,0.0002,2]
[321864719,1712574476576,216.41,0.00020794,2]
[321864720,1712574484466,454.40065796,0.00021,2]
[321864721,1712574491109,428.34372909,0.00020999,2]
[321864722,1712574506747,360.0,0.00020808,2]
[321864723,1712574524385,13962.32615421,0.00020996,2]
[321864724,1712574543694,330.96,0.00018931,2]
[321864809,1712574632479,-394.14771052,0.00021001,2]
[321864810,1712574632491,-60.25294744,0.00021001,2]
[321864811,1712574632507,-500.0,0.00021002,2]
[321864812,1712574632516,-357.2482,0.00021005,2]
[321864813,1712574632525,-4586.14511617,0.00021028,2]
[321864814,1712574632587,-500.71354731,0.00021028,2]
[321864815,1712574632632,-893.97357438,0.00021028,2]
[321864816,1712574632681,-4067.16304284,0.00021028,2]
[321864838,1712574637921,-907.87201028,0.00021028,2]
[321864841,1712574638275,-7437.74186184,0.00021028,2]
[321864842,1712574638304,-770.82347075,0.00021028,2]
[321864846,1712574639644,-290.32345874,0.00021028,2]
[321864847,1712574639655,-1177.73678559,0.00021029,2]
[321864848,1712574639722,-3390.87444642,0.00021029,2]
[321864849,1712574639731,-582.55202836,0.00021047,2]
[321864850,1712574639741,-44300.18072812,0.00021047,2]
[321864851,1712574639751,-844.34598028,0.00021048,2]
[321864852,1712574639762,-322.04066775,0.00021048,2]
[321864853,1712574639771,-792.50385449,0.00021048,2]
[321864854,1712574639780,-624.22352962,0.00021048,2]
[321864855,1712574639790,-302.4741937,0.00021048,2]
[321864856,1712574639799,-3648.3838464,0.00021048,2]
[321864857,1712574639809,-178.51741924,0.00021048,2]
[321864858,1712574639819,-284.89276116,0.00021048,2]
[321864859,1712574639828,-155.0,0.00021048,2]
[321864860,1712574639838,-206.18856688,0.00021048,2]
[321864861,1712574639847,-196.85723822,0.00021048,2]
[321864862,1712574639857,-667.44100789,0.00021048,2]
[321864863,1712574639866,-282.85710275,0.00021048,2]
[321864864,1712574639875,-1028.83477741,0.00021049,2]
[321864865,1712574639885,-379.80356877,0.00021049,2]
[321864866,1712574639894,-8192.31133314,0.0002105,2]
[321864867,1712574639906,-474600.35273413,0.0002105,2]
[321864868,1712574639916,-1000.0,0.00021096,2]
[321864869,1712574639926,-330.96,0.00021195,2]
[321864870,1712574639935,-836.46618944,0.00021475,2]
[321864871,1712574639945,-153.78804921,0.00021475,2]
[321864872,1712574639954,-515070.96102178,0.00021479,2]
[321864873,1712574640129,-34332.90801796,0.00021479,2]
[321864921,1712574643728,-870131.59869208,0.00021479,2]
[321864922,1712574643737,-506.0,0.00021575,2]
[321864923,1712574643747,-3637.975,0.00021606,2]
[321864924,1712574643756,-265.16297,0.0002162,2]
[321864925,1712574643767,-265.16297,0.0002167,2]
[321864926,1712574643776,-6530.57598303,0.00021702,2]
[321864927,1712574643785,-265.16297,0.0002175,2]
[321864928,1712574643794,-265.16297,0.0002183,2]
[321864929,1712574643803,-13962.32615418,0.00021861,2]
[321864930,1712574643813,-265.16297,0.0002191,2]
[321864931,1712574643823,-250.0,0.00021918,2]
[321864932,1712574643832,-265.16297,0.0002198,2]
[321864933,1712574643842,-640.60613676,0.00022,2]
[321864934,1712574643851,-783.43698561,0.00022,2]
[321864935,1712574643860,-174.0,0.00022,2]
[321864936,1712574643869,-150.0,0.00022051,2]
[321864937,1712574643878,-800.0,0.0002211,2]
[321864938,1712574643888,-434.48,0.0002211,2]
[321864939,1712574643897,-214.0,0.00022136,2]
[321864940,1712574643906,-1239.0,0.00022146,2]
[321864941,1712574643915,-1493.136,0.00022146,2]